bitfinex/quotes_BTCUSD_20260101
["timestamp","ask_amount","ask_price","bid_price","bid_amount"]
[1767279485827,0.04925742,87993.0,87983.0,0.01136583]
[1767279486000,0.04925742,87993.0,87984.0,0.0113657]
[1767279486200,0.04925742,87993.0,87983.0,0.01136583]
[1767279486423,0.04925742,87993.0,87984.0,0.0113657]
[1767279486603,0.04925742,87993.0,87983.0,0.01136583]
[1767279486804,0.04925742,87993.0,87984.0,0.0113657]
[1767279487444,0.04925742,87993.0,87983.0,0.01136583]
[1767279487807,0.04925742,87993.0,87984.0,0.0113657]
[1767279488156,0.04925742,87993.0,87982.0,0.01136596]
[1767279488398,0.04925742,87993.0,87983.0,0.01136583]
[1767279488937,0.04925742,87993.0,87982.0,0.01136596]
[1767279489097,0.04925742,87993.0,87983.0,0.01136583]
[1767279489505,0.04925742,87993.0,87981.0,0.01151099]
[1767279489706,0.04925742,87993.0,87982.0,0.01136596]
[1767279489909,0.04925742,87993.0,87983.0,0.01136583]
[1767279490303,0.04925742,87993.0,87982.0,0.01136596]
[1767279490506,0.04925742,87993.0,87984.0,0.0113657]
[1767279491128,0.04925742,87993.0,87983.0,0.01136583]
[1767279491328,0.04925742,87993.0,87984.0,0.0113657]
[1767279491912,0.04925742,87993.0,87985.0,0.01136557]
[1767279492129,0.04925742,87993.0,87984.0,0.0113657]
[1767279492379,0.04925742,87993.0,87981.0,0.0001449]
[1767279493148,0.04925742,87993.0,87981.0,0.01151099]
[1767279493984,0.04925742,87993.0,87982.0,0.01136596]
[1767279494134,0.04925742,87993.0,87981.0,0.01151099]
[1767279495061,0.04925742,87993.0,87982.0,0.01136596]
[1767279495344,0.04925742,87993.0,87981.0,0.01151099]
[1767279496542,0.04925742,87993.0,87982.0,0.01136596]
[1767279496742,0.04925742,87993.0,87981.0,0.01151099]
[1767279498662,0.04925742,87993.0,87981.0,0.0001449]
[1767279498866,0.04925742,87993.0,87981.0,0.01151099]
[1767279499104,0.04925742,87993.0,87981.0,0.0001449]
[1767279499457,0.04925742,87993.0,87981.0,0.01151099]
[1767279500053,0.04925742,87993.0,87981.0,0.0001449]
[1767279500322,0.04925742,87993.0,87981.0,0.01151099]
[1767279501586,0.0114,87994.0,87981.0,0.01151099]
[1767279501908,0.0114,87994.0,87982.0,0.01136596]
[1767279502129,0.0114,87994.0,87981.0,0.01151099]
[1767279503268,0.0114,87994.0,87981.0,0.0001449]
[1767279503395,0.0114,87994.0,87981.0,0.01151099]
[1767279503744,0.0114,87994.0,87983.0,0.01136583]
[1767279504145,0.0114,87994.0,87984.0,0.0113657]
[1767279504490,0.0114,87994.0,87985.0,0.01136557]
[1767279504691,0.0114,87994.0,87984.0,0.0113657]
[1767279504915,0.0114,87994.0,87985.0,0.01136557]
[1767279506235,0.0114,87994.0,87984.0,0.0113657]
[1767279506687,0.0114,87994.0,87983.0,0.01136583]
[1767279508434,0.0114,87994.0,87982.0,0.01136596]
[1767279510384,0.0114,87994.0,87981.0,0.01151099]
[1767279510536,0.0114,87994.0,87982.0,0.01136596]
[1767279510743,0.0114,87994.0,87983.0,0.01136583]
[1767279510947,0.0114,87994.0,87981.0,0.0001449]
[1767279511128,0.0114,87994.0,87982.0,0.01136596]
[1767279511322,0.0114,87994.0,87983.0,0.01136583]
[1767279511531,0.0114,87994.0,87982.0,0.01136596]
[1767279513164,0.0114,87994.0,87981.0,0.01151099]
[1767279513479,0.0114,87994.0,87983.0,0.01136583]
[1767279513781,0.0114,87994.0,87982.0,0.01136596]
[1767279517268,0.0114,87994.0,87982.0,0.05908177]
[1767279517473,0.0114,87994.0,87984.0,0.0113657]
[1767279517789,0.0114,87994.0,87983.0,0.01136583]
[1767279519091,0.0114,87994.0,87984.0,0.0113657]
[1767279519907,0.0114,87994.0,87985.0,0.01136557]
[1767279520063,0.0114,87994.0,87984.0,0.0113657]
[1767279520473,0.0114,87994.0,87985.0,0.01136557]
[1767279520704,0.0114,87994.0,87984.0,0.0113657]
[1767279521100,0.0114,87994.0,87983.0,0.01136583]
[1767279521297,0.0114,87994.0,87984.0,0.0113657]
[1767279523975,0.0114,87994.0,87983.0,0.01136583]
[1767279524440,0.0114,87994.0,87984.0,0.0113657]
[1767279525426,0.0114,87994.0,87983.0,0.01136583]
[1767279525639,0.0114,87994.0,87984.0,0.0113657]
[1767279527235,0.0114,87994.0,87983.0,0.01136583]
[1767279527444,0.0114,87994.0,87984.0,0.0113657]
[1767279529162,0.0114,87994.0,87985.0,0.01136557]
[1767279529841,0.0114,87994.0,87984.0,0.0113657]
[1767279531265,0.0114,87994.0,87985.0,0.01136557]
[1767279532369,0.0114,87994.0,87984.0,0.0113657]
[1767279533184,0.0114,87994.0,87985.0,0.01136557]
[1767279535034,0.0114,87994.0,87987.0,0.01136531]
[1767279535189,0.0114,87994.0,87988.0,0.06035895]
[1767279535539,0.0114,87994.0,87988.0,0.04899377]
[1767279536614,0.0114,87994.0,87988.0,0.06035895]
[1767279537521,0.0114,87994.0,87988.0,0.04899377]
[1767279538230,0.0114,87994.0,87988.0,0.06035895]
[1767279539646,0.0114,87994.0,87988.0,0.04899377]
[1767279539833,0.0114,87994.0,87986.0,0.01136544]
[1767279540373,0.0114,87994.0,87987.0,0.01136531]
[1767279540587,0.0114,87994.0,87988.0,0.01136518]
[1767279541532,0.0114,87994.0,87988.0,0.06035895]
[1767279541735,0.0114,87993.0,87988.0,0.06035895]
[1767279541936,0.0114,87993.0,87989.0,0.01136505]
[1767279542176,0.0114,87993.0,87990.0,0.04899377]
[1767279542354,0.0114,87993.0,87990.0,0.49313408]
[1767279542559,0.0114,87993.0,87990.0,0.504499]
[1767279542780,0.0114,87993.0,87990.0,0.49313408]
[1767279543186,0.0114,87993.0,87990.0,0.44414031]
[1767279543342,0.0114,87993.0,87989.0,0.01136505]
[1767279543961,0.0114,87993.0,87988.0,0.01136518]
[1767279544165,0.0114,87993.0,87989.0,0.01136505]
[1767279545241,0.0114,87993.0,87988.0,0.01136518]
[1767279546443,0.0114,87993.0,87987.0,0.01136531]
[1767279546671,0.0114,87993.0,87988.0,0.01136518]
[1767279547080,0.0114,87993.0,87985.0,0.04899377]
[1767279547241,0.000549,87988.0,87985.0,0.06035934]
[1767279547445,0.0114,87993.0,87986.0,0.01136544]
[1767279547644,0.0114,87993.0,87987.0,0.01136531]
[1767279547843,0.0114,87993.0,87988.0,0.01136518]
[1767279548047,0.0114,87993.0,87986.0,0.01136544]
[1767279548048,0.0114,87993.0,87985.0,0.06035934]
[1767279549165,0.0114,87993.0,87986.0,0.01136544]
[1767279549349,0.0114,87993.0,87985.0,0.04899377]
[1767279549727,0.0114,87993.0,87986.0,0.01136544]
[1767279550487,0.0114,87993.0,87984.0,0.0113657]
[1767279550627,0.0114,87993.0,87985.0,0.01136557]
[1767279551038,0.0114,87993.0,87986.0,0.01136544]
[1767279551440,0.0114,87993.0,87985.0,0.01136557]
[1767279551697,0.0114,87993.0,87986.0,0.01136544]
[1767279551907,0.0114,87993.0,87985.0,0.01136557]
[1767279552042,0.0114,87993.0,87986.0,0.01136544]
[1767279552878,0.0114,87993.0,87987.0,0.01136531]
[1767279553082,0.0114,87993.0,87986.0,0.01136544]
[1767279553281,0.0114,87993.0,87985.0,0.01136557]
[1767279553573,0.0114,87993.0,87987.0,0.01136531]
[1767279554209,0.0114,87993.0,87988.0,0.04899377]
[1767279554525,0.0114,87993.0,87988.0,0.06035895]
[1767279554717,0.0114,87993.0,87989.0,0.01136505]
[1767279555293,0.001099,87989.0,87986.0,0.01136544]
[1767279555618,0.0114,87993.0,87986.0,0.01136544]
[1767279556570,0.0114,87993.0,87987.0,0.01136531]
[1767279556972,0.0114,87993.0,87986.0,0.01136544]
[1767279557223,0.0114,87993.0,87987.0,0.01136531]
[1767279557425,0.0114,87993.0,87986.0,0.01136544]
[1767279557630,0.0114,87993.0,87987.0,0.01136531]
[1767279558410,0.0114,87993.0,87986.0,0.01136544]
[1767279558606,0.0114,87993.0,87985.0,0.01136557]
[1767279558809,0.0114,87993.0,87986.0,0.01136544]
[1767279559122,0.06867399,88006.0,87983.0,0.04899377]
[1767279559123,0.00049631,88006.0,87996.0,0.01136415]
[1767279559327,0.00049631,88006.0,88001.0,0.0113635]
[1767279559526,0.000549,88001.0,88000.0,0.13648772]
[1767279559724,0.00049631,88006.0,88000.0,0.13648772]
[1767279560147,0.00049631,88006.0,88000.0,0.13593772]
[1767279560379,0.04624204,88005.0,87994.0,0.13648772]
[1767279560790,0.04624204,88005.0,87997.0,0.0118]
[1767279561122,0.04624204,88005.0,87997.0,0.011251]
[1767279563338,0.04624204,88005.0,87989.0,0.01136505]
[1767279563543,0.04624204,88005.0,87988.0,0.01136518]
[1767279563738,0.04624204,88005.0,87993.0,0.01136479]
[1767279569277,0.04551647,88003.0,87993.0,0.01136479]
[1767279571334,0.00049631,88006.0,87993.0,0.01136479]
[1767279571666,0.05737564,88006.0,87993.0,0.01136479]
[1767279571865,0.04551647,88005.0,87993.0,0.01136479]
[1767279577951,0.04551647,88005.0,87993.0,0.01014602]
[1767279585436,0.07008288,88004.0,87993.0,0.01014602]
[1767279585644,0.04551647,88004.0,87993.0,0.01014602]
[1767279586526,0.04551647,88004.0,87989.0,0.01136505]
[1767279586742,0.04551647,88004.0,87990.0,0.03412171]
[1767279588561,0.05687958,88004.0,87990.0,0.03412171]
[1767279588913,0.01136324,88003.0,87990.0,0.03412171]
[1767279589114,0.01136337,88002.0,87990.0,0.03412171]
[1767279589323,0.0114,88001.0,87990.0,0.03412171]
[1767279593388,0.0114,88001.0,87987.0,0.02276531]
[1767279593389,0.06082188,88001.0,87987.0,0.0114]
[1767279593587,0.06082188,88001.0,87989.0,0.03412287]
[1767279601035,0.06082188,88001.0,87985.0,0.01136557]
[1767279601261,0.06082188,88001.0,87987.0,0.01136531]
[1767279601447,0.06082188,88001.0,87988.0,0.03412295]
[1767279602550,0.06065133,88001.0,87988.0,0.03412295]
[1767279603562,0.06065133,88001.0,87988.0,0.04548813]
[1767279603861,0.06065133,88001.0,87988.0,0.03412295]
[1767279604760,0.06065133,88001.0,87988.0,0.04548813]
[1767279605258,0.06065133,88001.0,87988.0,0.03412295]
[1767279605467,0.06065133,88001.0,87988.0,0.04548813]
[1767279605768,0.01122945,88001.0,87989.0,0.06049776]
[1767279606430,0.01068045,88001.0,87989.0,0.06049776]
[1767279606833,0.01068045,88001.0,87990.0,0.01136492]
[1767279607860,0.01068045,88001.0,87991.0,0.01136479]
[1767279608305,0.01068045,88001.0,87990.0,0.01136492]
[1767279608646,0.01068045,88001.0,87991.0,0.01136479]
[1767279608843,0.01068045,88001.0,87992.0,0.01136466]
[1767279609343,0.01068045,88001.0,87991.0,0.01136479]
[1767279609548,0.01068045,88001.0,87992.0,0.01136466]
[1767279609750,0.01068045,88001.0,87991.0,0.01136479]
[1767279610151,0.01068045,88001.0,87992.0,0.01136466]
[1767279610888,0.01068045,88001.0,87993.0,0.01136454]
[1767279611286,0.01136492,88005.0,87993.0,0.01136454]
[1767279611504,0.0114,88000.0,87992.0,0.01136466]
[1767279611703,0.01085,88000.0,87992.0,0.01136466]
[1767279612306,0.01085,88000.0,87993.0,0.01136454]
[1767279612870,0.01085,88000.0,87992.0,0.01136466]
[1767279613089,0.01085,88000.0,87993.0,0.01136454]
[1767279614229,0.01085,88000.0,87992.0,0.01136466]
[1767279614576,0.01085,88000.0,87991.0,0.01136479]
[1767279614818,0.01085,88000.0,87990.0,0.45539923]
[1767279614999,0.01085,88000.0,87991.0,0.01136479]
[1767279615174,0.01085,88000.0,87990.0,0.45539923]
[1767279615818,0.01085,88000.0,87990.0,0.44403431]
[1767279616197,0.01085,88000.0,87990.0,0.45539923]
[1767279616796,0.01085,88000.0,87991.0,0.01136479]
[1767279617340,0.01085,88000.0,87992.0,0.01136466]
[1767279617504,0.01085,88000.0,87991.0,0.01136479]
[1767279617709,0.01085,88000.0,87992.0,0.01136466]
[1767279618939,0.01085,88000.0,87991.0,0.01136479]
[1767279619163,0.01085,88000.0,87992.0,0.01136466]
[1767279619749,0.01085,88000.0,87991.0,0.01136479]
[1767279619911,0.01085,88000.0,87992.0,0.01136466]
[1767279620112,0.01085,88000.0,87991.0,0.01136479]
[1767279620518,0.01085,88000.0,87990.0,0.01136492]
[1767279621064,0.01085,88000.0,87991.0,0.01136479]
[1767279622078,0.01085,88000.0,87990.0,0.01136492]
[1767279622277,0.01085,88000.0,87991.0,0.01136479]
[1767279622498,0.01085,88000.0,87990.0,0.01136492]
[1767279623810,0.01085,88000.0,87991.0,0.01136479]
[1767279624568,0.0114,88001.0,87990.0,0.01136492]
[1767279625167,0.0114,88001.0,87991.0,0.01136479]
[1767279627123,0.0114,88001.0,87992.0,0.01136466]
[1767279627319,0.0114,88001.0,87991.0,0.01136479]
[1767279628053,0.0114,88001.0,87990.0,0.01136492]
[1767279628556,0.0114,88001.0,87991.0,0.01136479]
[1767279629091,0.0114,88001.0,87989.0,0.06049776]
[1767279631047,0.0114,88001.0,87990.0,0.01136492]
[1767279631426,0.0114,88001.0,87990.0,0.06818945]
[1767279631750,0.0114,88001.0,87991.0,0.01136479]
[1767279631965,0.0114,88001.0,87992.0,0.01136466]
[1767279632748,0.0114,88001.0,87991.0,0.01136479]
[1767279632958,0.0114,88001.0,87992.0,0.01136466]
[1767279633280,0.0114,88001.0,87991.0,0.01136479]
[1767279634051,0.0114,88001.0,87992.0,0.01136466]
[1767279634428,0.0114,88001.0,87991.0,0.01136479]
[1767279636503,0.0114,88001.0,87989.0,0.06049776]
[1767279636709,0.0114,88001.0,87990.0,0.01136492]
[1767279638087,0.0114,88001.0,87989.0,0.06049776]
[1767279638299,0.0114,88001.0,87987.0,0.01136531]
[1767279638300,0.04697507,87999.0,87987.0,0.01136531]
[1767279638489,0.04697507,87999.0,87988.0,0.01136518]
[1767279639403,0.04697507,87999.0,87987.0,0.01136531]
[1767279640447,0.04697507,87999.0,87988.0,0.01136518]
[1767279640743,0.04697507,87999.0,87987.0,0.01136531]
[1767279641200,0.04697507,87999.0,87988.0,0.01136518]
[1767279641413,0.04697507,87999.0,87990.0,0.01136492]
[1767279641610,0.04697507,87999.0,87989.0,0.01136505]
[1767279642150,0.04697507,87999.0,87988.0,0.01136518]
[1767279642349,0.04697507,87999.0,87989.0,0.01136505]
[1767279642735,0.05837507,87999.0,87990.0,0.01136492]
[1767279643564,0.05837507,87999.0,87988.0,0.01136518]
[1767279644107,0.05837507,87999.0,87987.0,0.01136531]
[1767279644302,0.05837507,87999.0,87989.0,0.01136505]
[1767279644426,0.05837507,87999.0,87988.0,0.01136518]
[1767279645050,0.05837507,87999.0,87987.0,0.01136531]
[1767279645666,0.05837507,87999.0,87988.0,0.01136518]
[1767279645891,0.05837507,87999.0,87989.0,0.01136505]
[1767279646588,0.05837507,87999.0,87988.0,0.01136518]
[1767279648622,0.05837507,87999.0,87986.0,0.01136544]
[1767279648902,0.05837507,87999.0,87988.0,0.01136518]
[1767279649344,0.05837507,87999.0,87986.0,0.01136544]
[1767279650614,0.05837507,87999.0,87988.0,0.01136518]
[1767279651657,0.05837507,87999.0,87989.0,0.01136505]
[1767279652216,0.05837507,87999.0,87990.0,0.01136492]
[1767279653030,0.05837507,87999.0,87989.0,0.01136505]
[1767279653575,0.05837507,87999.0,87988.0,0.01136518]
[1767279653986,0.05837507,87999.0,87989.0,0.01136505]
[1767279654186,0.05837507,87999.0,87988.0,0.01136518]
[1767279654388,0.05837507,87999.0,87986.0,0.01136544]
[1767279654588,0.05837507,87999.0,87987.0,0.01136531]
[1767279655033,0.05837507,87999.0,87988.0,0.06819111]
[1767279655232,0.05837507,87999.0,87988.0,0.01136518]
[1767279655850,0.05837507,87999.0,87987.0,0.01136531]
[1767279656226,0.05837507,87999.0,87988.0,0.01136518]
[1767279657465,0.05837507,87999.0,87987.0,0.01136531]
[1767279657672,0.05837507,87999.0,87986.0,0.01136544]
[1767279658352,0.05837507,87999.0,87987.0,0.01136531]
[1767279658795,0.05837507,87999.0,87986.0,0.01136544]
[1767279659018,0.0004,88012.0,88002.0,0.04595087]
[1767279659217,0.0114,88009.0,88002.0,0.04595087]
[1767279659362,0.0114,88009.0,88002.0,0.05731424]
[1767279659562,0.0114,88009.0,88002.0,0.05681689]
[1767279659811,0.0114,88009.0,88003.0,0.01136324]
[1767279659959,0.0114,88009.0,88001.0,0.0113635]
[1767279660168,0.0114,88009.0,88000.0,0.01136363]
[1767279660779,0.0114,88009.0,88001.0,0.0113635]
[1767279661967,0.0114,88009.0,88003.0,0.01136324]
[1767279662418,0.0114,88009.0,88001.0,0.0113635]
[1767279663359,0.0114,88009.0,88002.0,0.01136337]
[1767279664325,0.05711439,88009.0,88002.0,0.01136337]
[1767279665029,0.05711439,88009.0,88003.0,0.01136324]
[1767279665189,0.05656539,88009.0,88002.0,0.01136337]
[1767279665598,0.05656539,88009.0,88003.0,0.01136324]
[1767279666026,0.05656539,88009.0,88002.0,0.01136337]
[1767279666182,0.05656539,88009.0,88003.0,0.01136324]
[1767279666383,0.05656539,88009.0,88004.0,0.01136311]
[1767279666806,0.05656539,88009.0,88003.0,0.01136324]
[1767279667407,0.05656539,88009.0,88004.0,0.01136311]
[1767279667610,0.05656539,88009.0,88003.0,0.01136324]
[1767279668033,0.05656539,88009.0,88003.0,0.06817943]
[1767279668234,0.05656539,88009.0,88003.0,0.01136324]
[1767279668756,0.05656539,88009.0,88004.0,0.01136311]
[1767279669160,0.05656539,88009.0,88003.0,0.01136324]
[1767279669321,0.05656539,88009.0,88004.0,0.01136311]
[1767279670558,0.05656539,88009.0,88002.0,0.01136337]
[1767279670725,0.000549,88004.0,88002.0,0.01136337]
[1767279670921,0.05656539,88009.0,88002.0,0.01136337]
[1767279671122,0.05656539,88009.0,88001.0,0.0113635]
[1767279671325,0.05656539,88009.0,87999.0,0.01136376]
[1767279671726,0.05656539,88009.0,88000.0,0.01136363]
[1767279671943,0.05656539,88009.0,88001.0,0.0113635]
[1767279672714,0.010851,88009.0,88002.0,0.04595087]
[1767279673283,0.010851,88009.0,88002.0,0.05731424]
[1767279673714,0.010851,88009.0,88002.0,0.04595087]
[1767279675342,0.010851,88009.0,88002.0,0.05731424]
[1767279675701,0.010851,88009.0,88002.0,0.04595087]
[1767279677633,0.010851,88009.0,87999.0,0.01136376]
[1767279678230,0.010851,88009.0,87998.0,0.06818296]
[1767279678424,0.010851,88009.0,87999.0,0.01136376]
[1767279679044,0.010851,88009.0,87998.0,0.01136389]
[1767279679422,0.010851,88009.0,87999.0,0.01136376]
[1767279680163,0.010851,88009.0,88000.0,0.01136363]
[1767279681036,0.010851,88009.0,87999.0,0.01136376]
[1767279681234,0.010851,88009.0,87997.0,0.01136402]
[1767279681417,0.010851,88009.0,87998.0,0.01136389]
[1767279682254,0.010851,88009.0,87999.0,0.01136376]
[1767279682822,0.010851,88009.0,88000.0,0.01136363]
[1767279683461,0.00630161,88009.0,88000.0,0.01136363]
[1767279683878,0.00630161,88009.0,88002.0,0.01136337]
[1767279684081,0.00630161,88009.0,88001.0,0.0113635]
[1767279685751,0.00630161,88009.0,88000.0,0.01136363]
[1767279686914,0.000549,88000.0,87996.0,0.0568203]
[1767279687225,0.00630161,88009.0,87996.0,0.0568203]
[1767279687226,0.00630161,88009.0,87999.0,0.01136376]
[1767279688538,0.00630161,88009.0,87998.0,0.01136389]
[1767279688848,0.00630161,88009.0,87993.0,0.06871541]
[1767279688849,0.04835869,87998.0,87983.0,0.01136583]
[1767279689123,0.04780969,87996.0,87983.0,0.01136583]
[1767279689360,0.04780969,87994.0,87982.0,0.01136596]
[1767279689536,0.0114,87993.0,87982.0,0.01136596]
[1767279689697,0.0114,87993.0,87983.0,0.01136583]
[1767279690098,0.0114,87993.0,87984.0,0.0113657]
[1767279690301,0.0114,87993.0,87983.0,0.01136583]
[1767279690927,0.0114,87993.0,87982.0,0.01136596]
[1767279691509,0.0114,87993.0,87983.0,0.01136583]
[1767279693072,0.0114,87993.0,87984.0,0.0113657]
[1767279693297,0.0114,87993.0,87982.0,0.01136596]
[1767279693632,0.0114,87993.0,87984.0,0.0113657]
[1767279694044,0.0114,87993.0,87983.0,0.01136583]
[1767279694241,0.0114,87993.0,87985.0,0.03995331]
[1767279694668,0.0114,87993.0,87985.0,0.01136557]
[1767279695190,0.0114,87993.0,87984.0,0.0113657]
[1767279695391,0.0114,87993.0,87985.0,0.01136557]
[1767279695591,0.0114,87993.0,87986.0,0.02858774]
[1767279695767,0.0114,87994.0,87988.0,0.01718774]
[1767279696137,0.00561226,87994.0,87986.0,0.01136544]
[1767279696325,0.00561226,87994.0,87987.0,0.01136531]
[1767279697106,0.00561226,87994.0,87988.0,0.01136518]
[1767279697506,0.00561226,87994.0,87989.0,0.01136505]
[1767279697741,0.00561226,87994.0,87988.0,0.01136518]
[1767279697948,0.0001449,88011.0,87990.0,0.01136492]
[1767279697949,0.02453194,88006.0,87990.0,0.01136492]
[1767279698148,0.05920969,88005.0,87992.0,0.01136466]
[1767279698302,0.0114,88004.0,87993.0,0.01136454]
[1767279698707,0.0114,88004.0,87994.0,0.01136441]
[1767279698911,0.0114,88004.0,87993.0,0.01136454]
[1767279699113,0.0114,88004.0,87994.0,0.01136441]
[1767279699294,0.01147217,88004.0,87994.0,0.01136441]
[1767279699893,0.01147217,88004.0,87995.0,0.01136428]
[1767279700100,0.0114,88003.0,87995.0,0.01136428]
[1767279700296,0.0114,88003.0,87994.0,0.01136441]
[1767279700498,0.0114,88003.0,87995.0,0.01136428]
[1767279700708,0.01135729,88003.0,87995.0,0.01136428]
[1767279701103,0.01135729,88003.0,87996.0,0.01136415]
[1767279701379,0.0114,88002.0,87996.0,0.01136415]
[1767279701521,0.01135666,88002.0,87995.0,0.01136428]
[1767279701719,0.01135666,88002.0,87996.0,0.01136415]
[1767279701955,7.217e-05,88004.0,87995.0,0.01136428]
[1767279702111,0.0114,88001.0,87995.0,0.01136428]
[1767279702541,0.01135798,88001.0,87996.0,0.01136415]
[1767279703134,0.01131625,88001.0,87996.0,0.01136415]
[1767279704779,0.01131625,88001.0,87995.0,0.01136428]
[1767279705006,0.01131625,88001.0,87996.0,0.01136415]
[1767279705204,0.01131625,88001.0,87997.0,0.01136402]
[1767279705437,0.01131625,88001.0,87995.0,0.01136428]
[1767279705618,0.01131625,88001.0,87996.0,0.01136415]
[1767279707046,0.01131625,88001.0,87995.0,0.01136428]
[1767279707250,0.01131625,88001.0,87996.0,0.01136415]
[1767279708515,0.01127427,88001.0,87996.0,0.01136415]
[1767279708919,0.01127427,88001.0,87997.0,0.01136402]
[1767279709482,0.01123307,88001.0,87997.0,0.01136402]
[1767279710323,0.01123307,88001.0,87998.0,0.01136389]
[1767279710504,0.01123307,88001.0,87997.0,0.01136402]
[1767279710721,0.01123307,88001.0,87998.0,0.01136389]
[1767279711720,0.05904276,88001.0,87998.0,0.01136389]
[1767279712505,0.05904276,88001.0,87997.0,0.01136402]
[1767279712710,0.05904276,88001.0,87998.0,0.01136389]
[1767279713516,0.05676073,88001.0,87998.0,0.01136389]
[1767279714339,0.05377858,88001.0,87998.0,0.01136389]
[1767279714548,0.05373735,88001.0,87998.0,0.01136389]
[1767279715347,0.05093861,88001.0,87998.0,0.01136389]
[1767279715770,0.04920191,88001.0,87998.0,0.01136389]
[1767279717066,0.05895702,88001.0,87998.0,0.01136389]
[1767279717237,0.0114,88003.0,88001.0,0.0113635]
[1767279717792,0.0114,88003.0,88000.0,0.01136363]
[1767279718306,0.0114,88003.0,87999.0,0.01136376]
[1767279718677,0.0114,88003.0,87998.0,0.01136389]
[1767279718878,0.0114,88003.0,87999.0,0.01136376]
[1767279719913,0.05732471,88003.0,87999.0,0.01136376]
[1767279720303,0.001099,87999.0,87995.0,0.01136428]
[1767279720524,0.001099,87999.0,87993.0,0.01136454]
[1767279720753,0.0414322,87998.0,87985.0,0.05682733]
[1767279720915,0.0414322,88002.0,87987.0,0.01136531]
[1767279721116,0.0414322,88002.0,87986.0,0.01136544]
[1767279721501,0.0528322,88003.0,87987.0,0.0450091]
[1767279721698,0.0114,88003.0,87987.0,0.0450091]
[1767279724988,0.0414322,88002.0,87987.0,0.0450091]
[1767279725179,0.0414322,88002.0,87985.0,0.01136557]
[1767279725743,0.0414322,88002.0,87986.0,0.01136544]
[1767279725942,0.0114,88001.0,87990.0,0.44397083]
[1767279726144,0.0114,88001.0,87986.0,0.01136544]
[1767279726540,0.0528322,88001.0,87986.0,0.01136544]
[1767279726940,0.0528322,88001.0,87985.0,0.05637467]
[1767279727490,0.0528322,88001.0,87986.0,0.05682722]
[1767279727670,0.0528322,88001.0,87987.0,0.01136531]
[1767279728259,0.0528322,88001.0,87986.0,0.01136544]
[1767279729569,0.0528322,88001.0,87985.0,0.05637467]
[1767279729767,0.0528322,88001.0,87986.0,0.0450091]
[1767279730734,0.0414322,88000.0,87985.0,0.01136557]
[1767279730850,0.02457334,87999.0,87985.0,0.01136557]
[1767279731054,0.02457334,87999.0,87986.0,0.0450091]
[1767279731278,0.0114,88001.0,87986.0,0.0450091]
[1767279731475,0.02457231,88000.0,87986.0,0.0450091]
[1767279732763,0.02457231,88000.0,87987.0,0.0450091]
[1767279734622,0.000549,87987.0,87982.0,0.0450091]
[1767279735027,0.0114,87994.0,87982.0,0.0450091]
[1767279736586,0.0114,87994.0,87984.0,0.48910138]
[1767279737003,0.0114,87994.0,87985.0,0.0444601]
[1767279737715,0.0114,87994.0,87985.0,0.0439101]
[1767279738422,0.02456754,87993.0,87984.0,0.44409228]
[1767279740222,0.04592471,87992.0,87984.0,0.44409228]
[1767279740430,0.04592471,87992.0,87982.0,0.44409228]
[1767279742835,0.0114,87994.0,87983.0,0.04912774]
[1767279743059,0.0114,87994.0,87985.0,0.04912774]
[1767279744219,0.0114,87994.0,87984.0,0.44409228]
[1767279745558,0.0484778,87993.0,87984.0,0.44409228]
[1767279745749,0.05681549,88005.0,87984.0,0.44409228]
[1767279745750,0.04548,88009.0,88008.0,2.9479255]
[1767279745947,0.12077556,88009.0,88008.0,2.44436136]
[1767279746288,0.12077556,88009.0,88008.0,2.33007029]
[1767279746910,0.17758793,88009.0,88008.0,2.33007029]
[1767279747682,0.17758793,88009.0,88008.0,1.80541236]
[1767279748016,0.12077556,88009.0,88008.0,1.52104516]
[1767279748594,0.12077556,88009.0,88008.0,1.37886156]
[1767279749896,0.12077556,88009.0,88008.0,0.51684421]
[1767279750094,0.12077556,88009.0,88008.0,0.17555388]
[1767279751393,0.17758793,88009.0,88008.0,0.17555388]
[1767279751596,0.12077556,88009.0,88008.0,0.17555388]
[1767279754826,0.16926547,88009.0,88008.0,0.17555388]
[1767279757030,0.12077556,88009.0,88008.0,0.17555388]
[1767279757366,0.12077556,88009.0,87992.0,0.04607486]
[1767279757569,0.03520547,88008.0,87992.0,0.04607486]
[1767279757774,0.03520547,88007.0,87992.0,0.04607486]
[1767279757971,0.03520547,88006.0,87992.0,0.04607486]
[1767279758294,0.09402561,88005.0,87992.0,0.04607486]
[1767279758413,0.03520547,88004.0,87992.0,0.04607486]
[1767279758618,0.03520547,88003.0,87992.0,0.04607486]
[1767279758823,0.04660547,88002.0,87992.0,0.04607486]
[1767279759041,0.03520547,88001.0,87992.0,0.04607486]
[1767279759242,0.01065537,88000.0,87992.0,0.04607486]
[1767279759520,0.01065537,87999.0,87992.0,0.04607486]
[1767279759795,0.01065537,87998.0,87992.0,0.04607486]
[1767279759998,0.00808755,87999.0,87992.0,0.04607486]
[1767279764067,0.00808755,87999.0,87989.0,0.44409228]
[1767279764419,0.00808755,87999.0,87989.0,0.49016714]
[1767279767229,0.00808755,87999.0,87989.0,0.04607486]
[1767279767547,0.01034011,87998.0,87989.0,0.49016714]
[1767279767762,0.02455309,87997.0,87989.0,0.49016714]
[1767279769837,0.02455309,87997.0,87989.0,0.04607486]
[1767279771251,0.02455309,87997.0,87987.0,0.44409228]
[1767279772019,0.0106696,87996.0,87987.0,0.44409228]
[1767279772134,0.01034011,87998.0,87984.0,0.04607486]
[1767279772135,0.04662269,87995.0,87984.0,0.04607486]
[1767279772339,0.04662269,87995.0,87981.0,0.0001449]
[1767279772340,0.03522269,87994.0,87981.0,0.0001449]
[1767279772639,0.03522269,87993.0,87981.0,0.0001449]
[1767279772838,0.03522269,87992.0,87981.0,0.0001449]
[1767279773158,0.02455309,87991.0,87982.0,0.44409228]
[1767279773356,0.0114,87995.0,87981.0,0.44423718]
[1767279773569,0.01066858,87994.0,87985.0,0.44409228]
[1767279773765,0.0114,87995.0,87981.0,0.0001449]
[1767279773766,0.01066858,87993.0,87981.0,0.0001449]
[1767279773949,0.01066858,87992.0,87981.0,0.0001449]
[1767279774165,0.0114,87995.0,87981.0,0.0001449]
[1767279774362,0.01066857,87994.0,87981.0,0.0001449]
[1767279774558,0.01066857,87993.0,87981.0,0.0001449]
[1767279774820,0.01066857,87992.0,87983.0,0.44409228]
[1767279774976,0.01066857,87991.0,87982.0,0.44409228]
[1767279775180,0.0114,87995.0,87982.0,0.44409228]
[1767279775402,0.01066819,87994.0,87982.0,0.44409228]
[1767279775613,0.01066819,87993.0,87982.0,0.44409228]
[1767279775765,0.05882014,88005.0,87982.0,0.44409228]
[1767279775766,0.05695653,88011.0,88008.0,3.4323505]
[1767279775966,0.09630179,88009.0,88008.0,2.45142768]
[1767279776524,0.15311416,88009.0,88008.0,2.16696063]